bitfinex/quotes_SOLUSD_20240905
["timestamp","ask_amount","ask_price","bid_price","bid_amount"]
[1725522249273,45.0,133.33,133.26,18.7595]
[1725522249473,20.0,133.32,133.26,18.7595]
[1725522252284,20.0,133.32,133.26,26.2634]
[1725522253192,20.0,133.32,133.27,2.7094595]
[1725522256207,20.0,133.32,133.28,1.50015148]
[1725522256405,22.24660234,133.34,133.28,1.50015148]
[1725522256704,22.24660234,133.34,133.27,10.2127595]
[1725522257382,22.24660234,133.34,133.27,10.21153345]
[1725522258697,22.63786416,133.34,133.27,5.41647665]
[1725522258887,45.0,133.33,133.27,2.7082432]
[1725522259292,20.0,133.32,133.26,26.2634]
[1725522259979,20.0,133.32,133.26,28.97176596]
[1725522261704,20.0,133.32,133.26,26.2634]
[1725522262798,2.24660234,133.34,133.28,50.0]
[1725522263007,20.0,133.34,133.28,57.5028]
[1725522263502,20.0,133.34,133.28,7.5028]
[1725522264010,20.0,133.34,133.27,10.21188069]
[1725522264486,20.0,133.34,133.27,10.21120552]
[1725522264688,20.39126182,133.34,133.27,10.21120552]
[1725522265610,20.0,133.34,133.27,10.21120552]
[1725522266119,20.0,133.34,133.28,7.5028]
[1725522266297,20.0,133.34,133.29,7.5023]
[1725522268624,23.88811476,133.35,133.29,7.5023]
[1725522268810,20.0,133.34,133.29,7.5023]
[1725522269309,20.0,133.34,133.29,10.20907476]
[1725522270206,20.0,133.34,133.3,1.49988368]
[1725522270413,20.0,133.34,133.29,10.20907476]
[1725522270599,21.6405,133.35,133.3,59.00156824]
[1725522270905,21.6405,133.35,133.3,7.5018]
[1725522271208,21.6405,133.35,133.3,57.5018]
[1725522273313,21.6405,133.35,133.3,7.5018]
[1725522274194,21.6405,133.35,133.29,2.70656294]
[1725522274505,45.39126182,133.34,133.29,2.70656294]
[1725522274710,20.0,133.33,133.29,2.70656294]
[1725522274901,20.0,133.33,133.26,65.3952]
[1725522275296,20.0,133.33,133.26,72.8992]
[1725522276606,20.0,133.33,133.26,22.8992]
[1725522276808,45.0,133.32,133.26,15.3952]
[1725522277314,20.0,133.31,133.25,26.2653]
[1725522278097,45.0,133.32,133.25,26.2653]
[1725522278297,20.0,133.31,133.25,26.2653]
[1725522279109,20.0,133.31,133.26,1.50024884]
[1725522279614,20.0,133.31,133.26,57.504]
[1725522280007,20.39126182,133.34,133.26,57.504]
[1725522280209,45.0,133.33,133.26,57.504]
[1725522280406,20.0,133.32,133.26,57.504]
[1725522282122,20.0,133.32,133.27,2.70862725]
[1725522285398,20.0,133.32,133.26,57.504]
[1725522285596,20.0,133.32,133.27,2.70877742]
[1725522286009,20.0,133.32,133.26,57.504]
[1725522286507,20.0,133.32,133.27,2.70880861]
[1725522287528,45.0,133.31,133.27,5.41736048]
[1725522287705,45.0,133.31,133.28,2.70855187]
[1725522288506,45.0,133.31,133.29,1.50024151]
[1725522288905,20.0,133.32,133.29,1.50024151]
[1725522289106,20.0,133.32,133.27,2.70880861]
[1725522289319,20.39126182,133.34,133.27,2.70880861]
[1725522289532,45.0,133.33,133.28,2.70888423]
[1725522289732,45.0,133.33,133.29,2.70888423]
[1725522289733,20.0,133.32,133.29,2.70888423]
[1725522289908,20.0,133.32,133.28,2.70888423]
[1725522290110,20.0,133.32,133.29,2.70888423]
[1725522290320,20.0,133.32,133.28,2.70888423]
[1725522290529,20.0,133.32,133.29,2.70888423]
[1725522291028,20.0,133.32,133.28,2.70888423]
[1725522291213,20.0,133.32,133.29,2.70888423]
[1725522291420,20.0,133.32,133.3,2.70888423]
[1725522291615,20.0,133.32,133.28,2.70888423]
[1725522291822,20.0,133.32,133.29,2.70888423]
[1725522292027,20.0,133.32,133.3,2.70888423]
[1725522292608,20.0,133.32,133.28,2.70802947]
[1725522294010,20.0,133.32,133.27,2.70880861]
[1725522294211,20.0,133.32,133.29,2.70802731]
[1725522294632,20.0,133.32,133.26,57.5038]
[1725522300235,20.39126182,133.32,133.24,1.30694022]
[1725522300439,6.5732,133.3,133.24,1.30694022]
[1725522300645,65.39126182,133.29,133.2,7.5073]
[1725522300940,65.39126182,133.29,133.21,50.0]
[1725522301143,65.0,133.29,133.21,50.0]
[1725522301343,65.0,133.29,133.22,1.50063241]
[1725522301636,65.0,133.29,133.22,9.00693241]
[1725522301817,65.0,133.29,133.23,7.5057]
[1725522302230,65.0,133.29,133.22,7.5062]
[1725522302737,2.29680508,133.32,133.26,50.0]
[1725522302928,6.4185,133.34,133.27,7.5031]
[1725522303129,6.4185,133.34,133.28,1.50003489]
[1725522303439,6.4185,133.34,133.26,57.504]
[1725522304023,20.0,133.33,133.26,57.504]
[1725522304728,20.0,133.33,133.27,7.5035]
[1725522305417,20.0,133.33,133.26,7.504]
[1725522305617,20.39126182,133.33,133.26,7.504]
[1725522306029,45.0,133.32,133.27,1.50011325]
[1725522306238,20.0,133.31,133.27,1.50011325]
[1725522306430,20.0,133.31,133.27,7.5034]
[1725522306940,20.0,133.33,133.28,51.50009951]
[1725522307444,20.0,133.34,133.28,50.0]
[1725522308336,20.0,133.34,133.29,7.5023]
[1725522309343,6.6157,133.37,133.3,59.00164034]
[1725522309526,45.0,133.36,133.3,59.00164034]
[1725522309949,45.0,133.36,133.3,57.5018]
[1725522310244,45.0,133.36,133.31,1.49969784]
[1725522311046,20.0,133.35,133.3,7.5018]
[1725522313750,20.0,133.35,133.29,26.2577]
[1725522314129,45.0,133.36,133.29,26.2577]
[1725522314329,20.0,133.35,133.29,26.2577]
[1725522320231,20.0,133.35,133.3,1.4997688]
[1725522320433,20.0,133.35,133.29,26.2577]
[1725522323655,20.0,133.35,133.3,1.49977]
[1725522324760,20.0,133.35,133.29,26.2577]
[1725522325135,20.39126182,133.35,133.27,16.0222]
[1725522325330,20.39126182,133.35,133.24,51.30654746]
[1725522325331,61.0969,133.34,133.24,51.30654746]
[1725522325664,20.39126182,133.33,133.25,30.0]
[1725522325950,51.3777,133.32,133.23,41.5572]
[1725522326143,20.39126182,133.31,133.23,41.5572]
[1725522326349,45.0,133.3,133.23,41.5572]
[1725522326534,20.0,133.29,133.23,41.5572]
[1725522328761,20.0,133.29,133.24,51.50049346]
[1725522329062,20.0,133.29,133.24,57.5051]
[1725522330566,20.0,133.29,133.25,1.50042126]
[1725522330948,20.0,133.29,133.24,7.5051]
[1725522331261,20.0,133.29,133.25,1.5004216]
[1725522331854,20.0,133.29,133.23,41.5572]
[1725522332864,20.0,133.29,133.24,1.50049785]
[1725522333561,20.0,133.29,133.24,57.5051]
[1725522333959,22.26746348,133.31,133.24,57.5051]
[1725522334140,20.0,133.31,133.24,57.5051]
[1725522334466,20.0,133.31,133.25,7.5045]
[1725522334674,6.3777,133.32,133.26,57.504]
[1725522334961,16.0969,133.34,133.26,57.504]
[1725522335146,45.0,133.33,133.26,57.504]
[1725522336042,20.0,133.32,133.26,7.504]
[1725522336261,45.0,133.31,133.25,26.2656]
[1725522336472,45.0,133.31,133.26,1.50028405]
[1725522336767,45.0,133.31,133.25,26.2656]
[1725522336961,20.0,133.32,133.25,26.2656]
[1725522337268,20.39126182,133.33,133.25,26.2656]
[1725522337443,45.0,133.32,133.25,26.2656]
[1725522337643,20.0,133.31,133.25,26.2656]
[1725522339966,20.0,133.31,133.26,57.5038]
[1725522340148,20.0,133.33,133.26,57.5038]
[1725522340670,20.0,133.33,133.26,7.5038]
[1725522340966,20.0,133.33,133.26,57.5038]
[1725522341176,20.0,133.33,133.26,7.5038]
[1725522341669,0.39126182,133.32,133.25,26.2656]
[1725522341851,45.39126182,133.32,133.25,26.2656]
[1725522342057,20.0,133.31,133.25,26.2656]
[1725522342260,20.39126182,133.31,133.25,18.7611]
[1725522342557,45.0,133.3,133.25,18.7611]
[1725522345360,20.39126182,133.29,133.23,22.7933]
[1725522345558,45.0,133.28,133.23,22.7933]
[1725522345874,20.0,133.29,133.23,22.7933]
[1725522346075,20.39126182,133.33,133.23,22.7933]
[1725522346262,45.0,133.32,133.23,22.7933]
[1725522346465,20.39126182,133.31,133.23,22.7933]
[1725522346664,45.0,133.3,133.23,22.7933]
[1725522346971,20.0,133.29,133.23,22.7933]
[1725522347369,20.0,133.29,133.24,1.50058338]
[1725522347669,20.0,133.29,133.23,22.7933]
[1725522347872,20.0,133.29,133.24,1.50055313]
[1725522348375,20.0,133.29,133.24,7.5051]
[1725522348779,20.0,133.29,133.25,1.50046022]
[1725522349086,20.0,133.29,133.24,7.5051]
[1725522350879,20.39126182,133.33,133.24,7.5051]
[1725522351084,45.0,133.32,133.24,7.5051]
[1725522351378,20.39126182,133.31,133.24,7.5051]
[1725522351678,20.39126182,133.31,133.23,15.2877]
[1725522351679,45.0,133.3,133.23,22.7933]
[1725522351880,20.0,133.29,133.23,22.7933]
[1725522352585,20.0,133.29,133.24,1.50052987]
[1725522354658,20.0,133.29,133.23,22.7933]
[1725522354859,20.0,133.29,133.24,1.50052979]
[1725522355185,20.0,133.29,133.23,25.50111521]
[1725522355872,20.0,133.29,133.24,9.00542976]
[1725522356064,20.0,133.29,133.25,9.00500797]
[1725522356270,20.39126182,133.33,133.25,7.5046]
[1725522357563,18.3452468,133.34,133.27,22.5495]
[1725522357564,2.2483468,133.34,133.27,22.5495]
[1725522357781,6.3421,133.35,133.27,15.0464]
[1725522357985,6.3421,133.35,133.28,1.49995906]
[1725522358164,6.3421,133.35,133.27,15.0464]
[1725522358488,6.3421,133.35,133.28,7.5029]
[1725522358980,45.0,133.34,133.28,7.5029]
[1725522359358,20.0,133.33,133.28,57.5029]
[1725522360076,20.39126182,133.37,133.28,57.5029]
[1725522360268,45.0,133.36,133.28,57.5029]
[1725522360590,20.39126182,133.35,133.28,57.5029]
[1725522360960,20.39126182,133.35,133.28,7.5029]
[1725522361190,20.39126182,133.35,133.27,22.5498]
[1725522361483,45.0,133.34,133.27,22.5498]
[1725522361684,20.39126182,133.33,133.27,15.0464]
[1725522361985,45.0,133.32,133.28,1.50031714]
[1725522362485,45.0,133.32,133.27,15.0464]
[1725522362667,45.0,133.32,133.26,18.7596]
[1725522362668,20.39126182,133.31,133.24,7.505]
[1725522363257,20.39126182,133.31,133.23,16.064]
[1725522363457,45.0,133.3,133.23,16.064]
[1725522363659,20.39126182,133.29,133.23,16.064]
[1725522363883,20.0,133.29,133.24,1.50066703]
[1725522364095,20.0,133.29,133.23,73.5696]
[1725522364276,20.39126182,133.32,133.23,73.5696]
[1725522364477,45.0,133.31,133.23,73.5696]
[1725522364670,20.0,133.3,133.24,7.5051]
[1725522364989,20.39126182,133.32,133.25,1.5003811]
[1725522365195,22.68368944,133.32,133.25,1.5003811]
[1725522365373,22.68368944,133.32,133.24,7.5051]
[1725522366660,22.68368944,133.32,133.25,1.5003971]
[1725522366973,45.0,133.31,133.24,7.5051]
[1725522367181,20.0,133.3,133.25,1.50048729]
[1725522367580,20.0,133.3,133.24,7.5051]
[1725522367777,22.68368944,133.32,133.24,7.5051]
[1725522369284,22.68368944,133.32,133.25,1.50043673]
[1725522369878,22.68368944,133.32,133.25,1.50042401]
[1725522370464,22.68368944,133.32,133.23,73.5697]
[1725522373085,22.68368944,133.32,133.24,7.5052]
[1725522373991,22.68368944,133.32,133.23,23.5696]
[1725522374293,45.0,133.31,133.23,23.5696]
[1725522374606,20.39126182,133.3,133.23,23.5696]
[1725522374974,20.39126182,133.3,133.24,1.50053191]
[1725522375177,20.39126182,133.3,133.23,23.5696]
[1725522376086,20.0,133.3,133.24,18.7626]
[1725522376295,22.68368944,133.32,133.24,18.7626]
[1725522376465,20.39126182,133.32,133.24,18.7626]
[1725522377497,20.39126182,133.32,133.25,9.00485631]
[1725522378689,20.0,133.32,133.26,9.00421835]
[1725522378894,20.0,133.32,133.26,7.5039]
[1725522379196,22.271116,133.33,133.27,15.3032]
[1725522379383,20.0,133.32,133.28,1.50016267]
[1725522379695,20.39126182,133.35,133.28,1.50016267]
[1725522379904,20.39126182,133.35,133.27,15.3032]
[1725522383177,45.0,133.34,133.27,15.3032]
[1725522383503,20.39126182,133.33,133.27,15.3032]
[1725522383676,0.39126182,133.32,133.27,15.3032]
[1725522383880,0.39126182,133.32,133.23,7.5057]
[1725522384185,0.39126182,133.32,133.24,16.1512]
[1725522384186,45.39126182,133.32,133.24,16.1512]
[1725522384378,20.0,133.31,133.24,16.1512]
[1725522384581,0.39126182,133.3,133.24,16.1512]
[1725522385585,0.39126182,133.3,133.25,1.50057415]
[1725522385784,0.39126182,133.3,133.24,16.1512]
[1725522386595,20.39126182,133.31,133.25,1.50059521]
[1725522387178,20.39126182,133.31,133.24,16.1512]
[1725522387179,20.0,133.31,133.24,16.1512]
[1725522387379,20.39126182,133.33,133.24,16.1512]
[1725522387593,0.39126182,133.32,133.24,16.1512]
[1725522388398,0.39126182,133.32,133.25,7.5046]
[1725522390586,2.60255835,133.32,133.25,7.5046]
[1725522391386,2.60255835,133.32,133.26,1.50030497]
[1725522391588,2.60255835,133.32,133.27,1.50030274]
[1725522391782,2.21129653,133.32,133.25,57.5046]
[1725522391987,20.39126182,133.33,133.25,57.5046]
[1725522392307,6.1904,133.36,133.26,9.00431109]
[1725522392603,65.39126182,133.35,133.26,9.00431109]
[1725522392814,65.39126182,133.35,133.26,7.5041]
[1725522393506,0.39126182,133.34,133.26,7.5041]
[1725522394794,8.45746807,133.36,133.28,23.0372]
[1725522395003,2.65832989,133.36,133.28,23.0372]
[1725522396107,2.26706807,133.36,133.29,7.5023]
[1725522396306,0.39126182,133.38,133.28,23.0374]
[1725522396605,65.39126182,133.38,133.28,23.0374]
[1725522397188,67.59441519,133.38,133.28,22.8374]
[1725522398383,67.59441519,133.38,133.28,15.3346]
[1725522407717,67.59441519,133.38,133.28,65.3346]
[1725522407908,22.59441519,133.38,133.29,7.5024]
[1725522408108,22.59441519,133.38,133.28,41.594]
[1725522408910,22.59441519,133.38,133.28,91.594]
[1725522409112,45.0,133.37,133.28,91.594]
[1725522409319,20.39126182,133.36,133.28,91.594]
[1725522409517,20.39126182,133.36,133.28,41.594]
[1725522411033,0.39126182,133.35,133.28,41.594]
[1725522412207,0.39126182,133.35,133.28,34.0912]
[1725522412408,20.39126182,133.36,133.28,84.0912]
[1725522413323,0.39126182,133.35,133.28,84.0912]
[1725522413831,20.39126182,133.36,133.28,84.0912]
[1725522414731,20.39126182,133.36,133.28,91.5941]
[1725522415220,0.39126182,133.35,133.28,91.5941]
[1725522416808,0.39126182,133.35,133.29,2.70911868]
[1725522417430,0.39126182,133.35,133.28,91.5941]
[1725522417637,0.39126182,133.35,133.29,2.7085013]
[1725522420935,45.39126182,133.35,133.29,2.7085013]
[1725522421226,20.0,133.34,133.29,2.7085013]
[1725522421436,0.39126182,133.35,133.29,2.7085013]
[1725522422131,0.39126182,133.35,133.28,15.3346]
[1725522422334,0.39126182,133.35,133.28,18.0431013]
[1725522422521,0.39126182,133.35,133.28,15.3346]
[1725522422831,6.5176,133.34,133.28,2.7085013]
[1725522423127,6.5176,133.34,133.26,2.7085013]
[1725522423128,45.39126182,133.33,133.26,2.7085013]
[1725522423333,20.39126182,133.32,133.27,2.7085013]
[1725522423717,20.39126182,133.32,133.27,2.70914336]
[1725522424313,20.39126182,133.32,133.26,2.70914336]
[1725522425421,20.39126182,133.32,133.25,16.2363]
[1725522425625,20.39126182,133.32,133.25,18.94544336]
[1725522425923,36.26606182,133.32,133.24,2.70914336]
[1725522426128,45.0,133.31,133.23,2.70914336]
[1725522426433,20.39126182,133.3,133.24,2.70914336]
[1725522426736,45.39126182,133.29,133.23,2.70914336]
[1725522426922,20.0,133.28,133.23,2.70914336]
[1725522427117,20.0,133.28,133.24,1.50082313]
[1725522427834,0.39126182,133.27,133.23,2.71486886]
[1725522428137,0.39126182,133.27,133.19,42.4999]
[1725522428317,0.39126182,133.27,133.2,30.0]
[1725522428517,0.39126182,133.27,133.19,34.992]
[1725522429509,60.68526182,133.27,133.19,34.992]
[1725522429838,20.39126182,133.26,133.19,34.992]
[1725522430133,20.39126182,133.26,133.19,16.2227]
[1725522430635,20.39126182,133.26,133.18,1.50122065]
[1725522430833,45.0,133.25,133.18,1.50122065]
[1725522431136,20.39126182,133.24,133.18,1.50122065]
[1725522432234,20.0,133.24,133.17,7.509]
[1725522432430,20.0,133.24,133.17,57.509]
[1725522432621,20.39126182,133.26,133.17,57.509]
[1725522433521,20.39126182,133.26,133.18,9.00971147]
[1725522434549,20.39126182,133.26,133.18,7.5086]
[1725522434713,20.39126182,133.26,133.17,7.5091]
[1725522435035,20.39126182,133.26,133.18,1.50111131]
[1725522436139,20.39126182,133.26,133.18,9.00961131]
[1725522436837,20.39126182,133.26,133.18,1.50111131]
[1725522437141,15.294,133.27,133.2,7.5074]
[1725522437520,15.294,133.27,133.21,1.50085811]
[1725522438344,20.0,133.26,133.21,1.50085811]
[1725522440043,20.0,133.26,133.22,1.50089221]
[1725522440246,20.0,133.26,133.2,7.5074]
[1725522441247,20.0,133.26,133.18,18.7707]
[1725522441248,20.39126182,133.26,133.18,18.7707]
[1725522441433,20.39126182,133.26,133.18,26.2788]
[1725522441638,20.0,133.26,133.19,1.50112474]
[1725522441820,20.0,133.26,133.19,51.50112474]
[1725522442136,20.0,133.26,133.19,50.0]
[1725522442334,20.39126182,133.26,133.19,50.0]
[1725522443235,20.39126182,133.26,133.19,57.508]
[1725522443841,20.39126182,133.26,133.19,7.508]
[1725522444850,20.0,133.26,133.2,1.50103264]
[1725522446353,20.0,133.26,133.22,7.5063]
[1725522447552,20.0,133.26,133.21,7.5069]
[1725522450342,20.0,133.26,133.22,1.50096401]
[1725522450847,20.39126182,133.26,133.2,18.7682]
[1725522451037,20.39126182,133.26,133.21,1.50096921]
[1725522452333,20.39126182,133.26,133.2,1.50098299]
[1725522452533,20.39126182,133.26,133.21,1.50104171]
[1725522453141,20.39126182,133.26,133.19,7.5079]
[1725522454639,6.0563,133.25,133.2,1.50110285]
[1725522454949,20.0,133.24,133.2,1.50110285]
[1725522455133,20.0,133.24,133.19,7.508]
[1725522456852,20.0,133.24,133.2,1.50106893]
[1725522457938,20.39126182,133.24,133.18,1.50132264]
[1725522458147,20.39126182,133.24,133.17,26.2806]
[1725522460256,20.0,133.24,133.18,1.50127964]
[1725522460761,20.39126182,133.24,133.18,1.50127964]
[1725522463166,20.0,133.24,133.18,1.50127964]
[1725522463462,20.0,133.24,133.17,26.2806]
[1725522463774,20.0,133.24,133.18,1.50127854]
[1725522468854,20.0,133.24,133.18,9.00977854]
[1725522469259,20.0,133.24,133.19,7.5078]
[1725522469473,20.0,133.24,133.2,1.50113708]
[1725522470557,20.0,133.24,133.19,7.5078]
[1725522471859,20.0,133.24,133.18,7.5085]
[1725522472168,20.39126182,133.24,133.21,7.5068]
[1725522472351,20.0,133.24,133.2,1.50115191]
[1725522475673,20.0,133.24,133.21,1.50113849]
[1725522476451,20.0,133.24,133.19,26.2773]
[1725522476452,20.0,133.24,133.19,18.7693]
[1725522476959,20.0,133.24,133.19,26.2773]
[1725522477678,20.0,133.24,133.17,51.30770465]
[1725522477883,20.0,133.24,133.18,7.5085]
[1725522478666,20.39126182,133.24,133.19,1.50113911]
[1725522479182,20.0,133.24,133.19,1.50113911]
[1725522480574,20.0,133.24,133.18,7.5085]
[1725522482565,20.39126182,133.24,133.18,7.5085]
[1725522483061,0.39126182,133.23,133.18,7.5085]
[1725522483663,20.39126182,133.24,133.18,7.5085]
[1725522484277,16.85976182,133.23,133.18,7.5085]
[1725522484669,16.85976182,133.23,133.17,20.08008467]
[1725522484869,20.0,133.22,133.17,27.58908467]
[1725522487259,20.0,133.22,133.18,1.50131922]
[1725522489188,6.6639,133.21,133.17,1.30778467]
[1725522493083,7.05516182,133.21,133.17,1.30778467]
[1725522493286,6.6639,133.21,133.16,7.5096]
[1725522493580,6.6639,133.21,133.14,18.7765]
[1725522493581,0.39126182,133.2,133.14,18.7765]
[1725522493797,20.39126182,133.2,133.14,18.7765]
[1725522494373,6.6057,133.18,133.11,18.7806]
[1725522494577,6.6057,133.18,133.12,7.5115]
[1725522494578,20.0,133.17,133.12,7.5115]
[1725522496388,6.2272,133.22,133.19,7.508]
[1725522496586,6.2272,133.22,133.18,7.5081]
[1725522497580,6.2272,133.22,133.19,7.5077]
[1725522498482,6.2272,133.22,133.18,7.5085]
[1725522499591,6.2272,133.22,133.19,7.5078]
[1725522499795,21.6323,133.3,133.21,7.5068]
[1725522500292,0.39126182,133.29,133.21,7.5068]
[1725522501066,20.39126182,133.29,133.21,7.5068]
[1725522503598,66.5449,133.28,133.19,26.277]
[1725522503895,20.39126182,133.27,133.19,26.277]
[1725522504204,20.39126182,133.27,133.2,7.5073]
[1725522506690,20.39126182,133.27,133.21,1.50108547]
[1725522507688,20.39126182,133.27,133.19,26.277]
[1725522509378,6.0707,133.26,133.17,7.5091]
[1725522509587,36.66496182,133.25,133.17,7.5091]
[1725522510184,36.66496182,133.25,133.18,1.50135883]
[1725522511809,36.2737,133.25,133.18,7.5084]
[1725522512020,0.39126182,133.24,133.18,7.5084]
[1725522513487,0.39126182,133.24,133.19,1.50127021]
[1725522513706,0.39126182,133.24,133.18,7.5084]
[1725522516094,38.57210781,133.25,133.19,1.50118693]
[1725522516288,0.39126182,133.24,133.18,7.5084]
[1725522517388,36.2737,133.25,133.19,9.00918944]
[1725522517590,36.2737,133.25,133.2,7.507]
[1725522518187,36.2737,133.25,133.21,7.5069]
[1725522518390,36.2737,133.25,133.2,26.2757]
[1725522519704,36.2737,133.25,133.21,7.5069]
[1725522520811,36.2737,133.25,133.22,1.50092484]
[1725522520990,36.2737,133.25,133.21,7.5069]
[1725522523896,36.2737,133.25,133.22,1.50092485]
[1725522524912,36.2737,133.25,133.21,7.5069]
[1725522526581,36.2737,133.25,133.22,1.50091892]
[1725522527508,36.2737,133.25,133.21,7.5069]
[1725522529414,36.2737,133.25,133.2,18.7684]
[1725522529626,36.2737,133.25,133.2,7.5074]
[1725522533419,36.2737,133.25,133.22,7.5061]
[1725522533595,36.2737,133.25,133.21,18.7668]
[1725522533918,36.2737,133.25,133.21,26.2736]
[1725522534793,36.2737,133.25,133.2,7.5073]
[1725522535317,0.39126182,133.24,133.18,18.7709]
[1725522536412,0.39126182,133.24,133.18,26.2793]
[1725522542215,36.2737,133.25,133.19,9.00921121]
[1725522542917,36.2737,133.25,133.19,7.508]
[1725522543909,36.2737,133.25,133.18,26.2794]
[1725522545922,36.2737,133.25,133.19,1.50111496]
[1725522546922,36.2737,133.25,133.19,7.5078]
[1725522547220,36.2737,133.25,133.19,52.5078]
[1725522547422,36.2737,133.25,133.19,7.5078]
[1725522555033,20.0,133.25,133.21,7.5067]
[1725522557927,20.0,133.25,133.2,71.2755]
[1725522558138,16.1769,133.24,133.2,18.7684]
[1725522562629,16.1769,133.24,133.2,26.2758]
[1725522562828,16.1769,133.24,133.2,18.7684]
[1725522564536,16.1769,133.24,133.19,7.508]
[1725522564836,6.5463,133.22,133.15,1.30779477]
[1725522565054,17.00976182,133.21,133.15,1.30779477]
[1725522565222,20.39126182,133.2,133.14,26.2869]
[1725522565622,20.0,133.2,133.14,26.2869]
[1725522568535,20.39126182,133.2,133.14,26.2869]
[1725522568954,20.0,133.2,133.14,26.2869]
[1725522570151,20.0,133.2,133.15,1.50159073]
[1725522571051,20.0,133.2,133.14,26.2869]
[1725522571731,20.0,133.2,133.16,7.5095]
[1725522573136,20.0,133.2,133.17,1.5015193]
[1725522573843,20.0,133.2,133.16,7.5095]
[1725522574247,20.0,133.2,133.15,7.5101]
[1725522575553,20.0,133.2,133.16,1.50152436]
[1725522577361,20.0,133.2,133.15,7.5101]
[1725522577734,20.0,133.2,133.16,1.50153438]
[1725522578556,20.0,133.2,133.17,1.5015314]
[1725522579157,20.0,133.2,133.15,7.5101]
[1725522579558,20.0,133.2,133.16,1.5015346]
[1725522579747,20.0,133.2,133.17,7.5091]
[1725522580059,16.6185,133.21,133.16,63.7737]
[1725522580554,16.6185,133.21,133.17,7.5091]
[1725522580735,16.6185,133.21,133.18,1.50132592]
[1725522580929,16.6185,133.21,133.17,7.5091]
[1725522582247,16.6185,133.21,133.18,7.5084]
[1725522585231,16.6185,133.21,133.17,7.509]
[1725522586153,16.6185,133.21,133.16,26.2832]
[1725522586346,16.6185,133.21,133.17,1.50140806]
[1725522586551,16.6185,133.21,133.16,26.2832]
[1725522586856,16.6185,133.21,133.16,18.7737]
[1725522587249,16.6185,133.21,133.16,26.2831]
[1725522587442,16.6185,133.21,133.17,1.50144758]
[1725522587645,16.6185,133.21,133.17,1.50144421]
[1725522588068,16.6185,133.21,133.16,26.2831]
[1725522588446,16.6185,133.21,133.17,1.50147185]
[1725522589960,16.6185,133.21,133.16,26.2831]
[1725522590660,20.0,133.2,133.16,26.2831]
[1725522591376,6.2805,133.19,133.12,7.5115]
[1725522591566,20.39126182,133.18,133.12,1.30842784]
[1725522591949,20.39126182,133.18,133.11,7.5124]
[1725522592142,20.39126182,133.18,133.12,30.0]
[1725522592449,20.0,133.18,133.12,37.5119]
[1725522592655,20.0,133.18,133.14,7.5104]
[1725522593152,20.0,133.18,133.15,7.5101]
[1725522593469,6.2805,133.19,133.15,7.5101]
[1725522594378,6.2805,133.19,133.16,9.01105546]
[1725522594850,6.2805,133.19,133.16,7.5096]
[1725522596760,6.2805,133.19,133.15,7.5102]
[1725522597267,6.2805,133.19,133.14,26.2874]
[1725522599550,6.2805,133.19,133.15,1.50156723]
[1725522599765,15.98416182,133.18,133.11,18.7808]
[1725522600068,35.98416182,133.18,133.12,30.0]
[1725522600252,35.98416182,133.18,133.11,26.2932]
[1725522600777,35.98416182,133.18,133.13,7.5112]
[1725522600961,35.98416182,133.18,133.12,7.5119]
[1725522601152,35.98416182,133.18,133.11,18.7808]
[1725522601353,35.98416182,133.18,133.1,2.18055372]
[1725522601573,6.5175,133.17,133.1,2.18055372]
[1725522601746,20.39126182,133.16,133.1,2.18055372]
[1725522602070,6.4203,133.14,133.1,2.18055372]
[1725522602287,20.0,133.13,133.1,2.18055372]
[1725522602451,20.0,133.13,133.1,0.8725234]
[1725522610858,2.21160505,133.16,133.12,7.5117]